Cogmind - Beta 10.1 @@@ ROGUE MODE // 2020.09.25 @ 19:15:29 // Winter2019/RPGLIKE Player: Hermelin Result: Core destroyed Performance ------------- Evolutions (0) 0 Regions Visited (1) 200 Robots Destroyed (10) 50 Value Destroyed (251) 251 Prototype IDs (0) 0 Alien Tech Used (0) 0 Bonus (0) 0 TOTAL SCORE: 501 Bonus ------- None Cogmind --------- Core Integrity 0/600 Matter 300/300 Energy 250/250 System Corruption 0% Temperature Cool (0) Movement Treading (160) Location -10/Materials Parts ------- > --- POWER (1) -------- Ion Engine > --- PROPULSION (2) --- Light Treads Light Treads > --- UTILITY (2) ------ Improved Terrain Scanner > --- WEAPON (2) ------- EM Pulse Gun Light Assault Rifle > --- INVENTORY (2) ---- Light Nuclear Core EM Pulse Gun Peak State ------------ > --- POWER ------------ Ion Engine > --- PROPULSION ------- Light Treads Light Treads > --- UTILITY ---------- Improved Terrain Scanner > --- WEAPON ----------- EM Pulse Gun Light Assault Rifle > --- INVENTORY -------- EM Pulse Gun [Rating: 7] Favorites ----------- Power Ion Engine Engine Ion Engine Propulsion Light Treads Treads Light Treads Utility Improved Terrain Scanner Device Improved Terrain Scanner Weapon EM Pulse Gun Energy Gun EM Pulse Gun Ballistic Gun Light Assault Rifle Build | -11 -10 ------- Run | Scr Mat Slots Evolved 3 | 3 . Power . | . . Propulsion 1 | 1 . Utility 1 | 1 . Weapon 1 | 1 . Parts Attached 6 | 6 . Power 1 | 1 . Engine 1 | 1 . Core . | . . Reactor . | . . Propulsion 2 | 2 . Treads 2 | 2 . Leg . | . . Wheel . | . . Hover . | . . Flight . | . . Utility 1 | 1 . Device 1 | 1 . Storage . | . . Processor . | . . Hackware . | . . Protection . | . . Artifact . | . . Weapon 2 | 2 . Energy Gun 1 | 1 . Energy Cannon . | . . Ballistic Gun 1 | 1 . Ballistic Cannon . | . . Launcher . | . . Special Weapon . | . . Impact Weapon . | . . Slashing Weapon . | . . Piercing Weapon . | . . Special Melee Weapon . | . . Unidentified Prototypes . | . . Parts Lost . | . . Power . | . . Propulsion . | . . Utility . | . . Weapon . | . . Highest Loss Streak . | . . Average Slot Usage (%) 85 | . 85 Engine 14 | . 14 Treads 28 | . 28 Device 14 | . 14 Energy Gun 14 | . 14 Ballistic Gun 14 | . 14 Naked Turns . | . . Heaviest Build 9 | 9 9 Greatest Support 45 | 45 45 Greatest Overweight (x) . | . . Average Overweight (x) . | . . Largest Inventory Capacity 2 | 2 2 Average Capacity 1 | 1 2 Most Carried 2 | 1 2 Average Carried 1 | . 1 Final Capacity 2 | 2 2 Final Carried 2 | 1 2 Class Distribution -------------------- 100% | Mutant Dominant Class ---------------- Mutant | -10/Materials Resources | -11 -10 ----------- Run | Scr Mat Matter Collected 307 | 272 35 Remotely . | . . Salvage Created 453 | 184 269 Parts 21 | 7 14 Haulers Intercepted . | . . Recyclers Shooed . | . . Parts Field Recycled . | . . Retrieved Matter . | . . Parts Self-Destructed . | . . Prevented . | . . Kills | -11 -10 ------- Run | Scr Mat Combat Hostiles Destroyed 6 | . 6 Guns 6 | . 6 Classes Destroyed 4 | 3 1 Worker 1 | 1 . Tunneler 2 | 2 . Recycler 1 | 1 . Grunt 6 | . 6 Best Kill Streak 3 | 2 3 Combat Bots Only 3 | . 3 Max Kills in Single Turn 1 | 1 1 Gunslinging . | . . Exploded . | . . Melee . | . . Uniques/NPCs Destroyed . | . . Combat | -11 -10 -------- Run | Scr Mat Damage Taken 787 | 16 771 Core 626 | 14 612 Absorbed by Shields . | . . Redirected to Core 530 | 6 524 Core Remaining (%) 97 | 97 . Volleys Fired 47 | 12 35 Largest 2 | 2 2 Hottest 60 | 60 60 Shots Fired 94 | 24 70 Gun 94 | 24 70 Cannon . | . . Launcher . | . . Special . | . . Kinetic 47 | 12 35 Thermal . | . . Explosive . | . . Electromagnetic 47 | 12 35 Robot Hit Streak 13 | 8 13 Robot Miss Streak 3 | 2 3 Penetration Max . | . . Secondary Targets 3 | . 3 Max Gunslinging Chain 1 | . 1 Shots Hit Robots 67 | 15 52 Core Hits 20 | 5 15 Critical Hits . | . . Critical Kills . | . . Critical Parts Destroyed . | . . Melee Attacks . | . . Impact . | . . Slashing . | . . Piercing . | . . Sneak Attacks . | . . Combat Hostiles . | . . Follow-up Attacks . | . . Damage Inflicted 726 | 206 520 Guns 683 | 165 518 Cannons . | . . Explosions 41 | 41 . Melee . | . . Ramming 2 | . 2 Kinetic 205 | 32 173 Thermal 41 | 41 . Explosive . | . . Electromagnetic 478 | 133 345 Impact . | . . Slashing . | . . Piercing . | . . Highest Corruption . | . . Average Corruption . | . . Corruption Purged . | . . Overload Shots . | . . Overflow Damage . | . . Projectiles . | . . Explosions . | . . Melee . | . . Knockbacks . | . . Impact . | . . Kinetic . | . . Secondary . | . . Self-Inflicted Damage 19 | 17 2 Shots 1 | 1 . Rammed . | . . Targets Rammed . | . . Kicked . | . . Crushed . | . . Highest Temperature 64 | 20 64 Average Temperature 20 | 7 23 Received Heat Transfer 420 | . 420 Siege Activations . | . . Robots Corrupted . | . . Combat Hostiles . | . . Parts Fried 1 | 1 . Impact Corruptions . | . . Robots Melted . | . . Combat Hostiles . | . . Parts Melted . | . . Heat Transferred 50 | 50 . Parts Sabotaged . | . . Parts Stolen . | . . Parts Stripped . | . . Power Chain Reactions 1 | 1 . Missiles Intercepted . | . . Alert | -11 -10 ------- Run | Scr Mat Peak Influence 253 | 20 253 Initial 13 | . 13 Average 71 | 8 137 Maximum Alert Level 1 | . 1 Low Security (%) 82 | 100 63 Level 1 17 | . 36 Level 2 . | . . Level 3 . | . . Level 4 . | . . Level 5 . | . . High Security . | . . Max Security . | . . Squads Dispatched 1 | . 1 Investigation 1 | . 1 Extermination . | . . Reinforcement . | . . Assault . | . . Garrison . | . . Intercept . | . . Construction Impeded . | . . Haulers Reinforced . | . . Stealth | -11 -10 --------- Run | Scr Mat Distress Signals 3 | . 3 Communications Jammed . | . . Distress Signals . | . . Times Spotted 12 | . 12 Peak Tracking Total 5 | . 5 Tactical Retreats 1 | . 1 Traps | -11 -10 ------- Run | Scr Mat Traps Triggered . | . . Indirectly . | . . Trap Hack Attempts . | . . Triggered . | . . Disarmed . | . . Reprogrammed . | . . Reused . | . . Traps Extracted . | . . Installed . | . . Triggered . | . . Machines | -11 -10 ---------- Run | Scr Mat Machines Disabled . | . . Max in Single Turn . | . . Machines Sabotaged . | . . Garrisons Compromised . | . . Overloaded Fab Kills . | . . Fab Network Shutdowns . | . . Hacking | -11 -10 --------- Run | Scr Mat Machines Accessed 1 | . 1 Terminals . | . . Fabricators . | . . Repair Stations . | . . Recycling Units 1 | . 1 Scanalyzers . | . . Garrison Access . | . . Total Hacks 3 | . 3 Successful 3 | . 3 Failed . | . . Catastrophic . | . . Database Lockouts . | . . Manual 1 | . 1 Terminals . | . . Fabricators . | . . Repair Stations . | . . Recycling Units 3 | . 3 Scanalyzers . | . . Garrison Access . | . . Terminal Hacks . | . . Fabricator Hacks . | . . Repair Station Hacks . | . . Recycling Unit Hacks 2 | . 2 Report Inventory 1 | . 1 Retrieve Components 1 | . 1 Scanalyzer . | . . Garrison Access Hacks . | . . Unauthorized Hacks 1 | . 1 Terminals . | . . Fabricators . | . . Repair Stations . | . . Recycling Units 1 | . 1 Tunnel 1 | . 1 Scanalyzers . | . . Garrison Access . | . . Data Cores Recovered . | . . Used . | . . Hacking Detections . | . . Full Trace Events . | . . Feedback Events . | . . Feedback Blocked . | . . Robot Schematics Acquired . | . . Robots Built . | . . Matter . | . . Time . | . . Total Robot Build Rating . | . . Part Schematics Acquired . | . . Parts Built . | . . Matter . | . . Time . | . . Total Part Build Rating . | . . Parts Repaired . | . . Time . | . . Parts Recycled . | . . Recycled Matter . | . . Retrieved Matter . | . . Retrieved Components 3 | . 3 Parts Scanalyzed . | . . Part Schematics Acquired . | . . Parts Damaged . | . . Bothacking | -11 -10 ------------ Run | Scr Mat Used RIF Installer . | . . Robots Hacked . | . . Non-combat . | . . Combat . | . . Robot Hacks Applied . | . . Relay Couplers Released . | . . Robots Rewired . | . . Allies Hacked . | . . Hacks Repelled . | . . Allies | -11 -10 -------- Run | Scr Mat Total Allies . | . . Largest Group . | . . Highest-Rated Group . | . . Highest-Rated Ally . | . . Total Orders . | . . Ally Attacks . | . . Total Damage . | . . Kills . | . . Allies Corrupted . | . . Allies Melted . | . . Intel | -11 -10 ------- Run | Scr Mat Robot Analysis Total . | . . Derelict Logs Recovered . | . . Drone Launches . | . . Drone Recoveries . | . . Exploration | -11 -10 ------------- Run | Scr Mat Turns Passed 456 | 232 224 Spaces Moved 146 | 75 71 Core 4 | 4 . Treads 142 | 71 71 Legs . | . . Wheels . | . . Hover . | . . Flight . | . . Fastest Speed 50 | 50 160 Average Speed 156 | 154 160 Slowest Speed 160 | 160 160 Overloaded Moves . | . . Propulsion Burnouts . | . . Robots Hopped . | . . Cave-ins Triggered . | . . Exploration Rate (%) 12 | 7 17 Regions Visited 1 Branch Regions . Pre-discovered Areas 1 | . 1 Known Exits Taken . | . . Unknown Exits Taken 1 | 1 . Scrap Searched . | . . Spaces Dug . | . . Terrain Destroyed . | . . Melee . | . . Projectile . | . . AOE . | . . Terrain Rammed 1 | . 1 Walls Destroyed . | . . Machines Disabled . | . . Actions | -11 -10 --------- Run | Scr Mat Total 285 | 167 118 Wait 83 | 74 9 Move 145 | 74 71 Hop . | . . Pick Up 3 | 1 2 Fast Attach 6 | 6 . Attach . | . . Detach . | . . Swap . | . . Drop 1 | . 1 Fire 47 | 12 35 Melee . | . . Ram . | . . Kick . | . . Crush . | . . Escape Stasis . | . . Rewire . | . . Trap . | . . Miscellaneous . | . . Route ------- -11/Scrapyard -10/Materials History --------- Turn | Location | Event 8 | -11/Scrapyard | Discovered new exit (range 13) 10 | -11/Scrapyard | Upgraded with Propulsion slot (x1) 10 | -11/Scrapyard | Upgraded with Utility slot (x1) 10 | -11/Scrapyard | Upgraded with Weapon slot (x1) 233 | -11/Scrapyard | Entered Materials 310 | -10/Materials | Build established: Mutant 373 | -10/Materials | Core integrity fell below 50% 405 | -10/Materials | Core integrity fell below 20% 457 | -10/Materials | Core destroyed Last Messages --------------- 00405_ G-34 Mercenary destroyed. 00406_ R-06 Scavenger collects Heat Sink. 00407_ K-01 Serf collects debris. 00409_ R-06 Scavenger collects Tractor Beam. 00411_ K-01 Serf collects debris. 00413_ R-06 Scavenger collects Aluminum Leg. 00415_ K-01 Serf collects debris. 00416_ R-06 Scavenger collects Com. Wheel. 00419_ K-01 Serf collects debris. 00425_ G-47 Trooper destroyed. 00425_ K-01 Serf collects debris. 00431_ Acquired 19 matter. 00434_ K-01 Serf collects debris. 00447_ K-01 Serf cleans the Repair Station. 00449_ R-06 Scavenger collects ECM Suite. 00450_ K-01 Serf cleans the Repair Station. 00453_ R-06 Scavenger collects Lgt. Nuclear Core. 00455_ K-01 Serf collects debris. 00457_ Kicked Wall. 00457_ Destabilizing: Core damaged (-30). Map ----- +----------------------------------------------------+ | ?????????????????????????????????????????????????? | | ?????????????????????????????????????????????????? | | ?????????????????????????????????????????????????? | | ?????????????????????????????????????????????????? | | ?????????????????????????????????????????????????? | | ?????????????????????????????????????????????????? | | ?????????????????????????????????????????????????? | | ?????????????????????????????????????????????????? | | ?????????????????????????????????????????????????? | | ???????????????????? ????????????????????????????? | | ??????????????#??????????????????????????????????? | | ?????????????????????????????????????????????????? | | ?????? ?????????????????????? ????????????????? | | ????? #?????"???????######## ????????????????? | | ??? ##?????????? #???????????????? | | ???? ##???????#???? ????????????????? | | ??"? #?????#????? ?????????????????? | | ????? ############ ???????????????? | | ????? ## """ # ???????????????? | | ?????? ## ="Y" ## """ #???#??????????? | | ?????? ## [ ##"""^^ """ #??????????????? | | ?????## ## """ """ ##"R """ #? ????????????? | | ??????# ## """ """ ##""" ????????????????? | | ??????# ## """ """ ## % *???#??????????????? | | ??????# ## ## = ???????????????????? | | ???#??# ## ## !@##?#??? ???????????????? | | ####### ########+### k%[ #??#?? ???????????????? | | # r = #??????????? ????????? | | # #?#?????#??? ?????????? | | # %% #????? ???????????????? | | # ######### ##### #???????#?????????????? | | % %#??????## #???###+#####??# ??# ??????????? | | % %#??????## #?????#% #??????#????????????? | | #%%%%##???????# #?????# """ #?? ? ??????????????? | | ######????????# ###??"" """ #? ???? ????????????? | | ???##?????????# #?#?#"" """ #? ??? ?????????????? | | ????????????#?# #???#"T ##??? ??????????????? | | ???#??????????# #???#"" ##?? ????? ?????????? | | ?????????????## #???#"" "" #???????? ??????????? | | ??????????????# #????## Y" #???????????????????? | | ???#???#????#?# ##????# "? ##??????????????????? | | ??????????????# #????## ????? ??#?????????????? | | ?????????#????# # ?????##+???????#??????????????? | | ??????????????# #?? ????????????????????????????? | | ??????????????# ??? ???????? ??????????????????? | | ??????????????# ??? ? ?????????????????????????? | | ??????????????# #?????????????? ????????????????? | | ??????????????? ????????????????????????????????? | | ??????????????? ????????????????????????????????? | | ??????????????? ????????????????????????????????? | +----------------------------------------------------+ Best States ------------- Heat Dissipation 31 Energy Generation 10 Energy Capacity 250 Matter Stores 300 Matter Capacity 300 Sight Range 17 Terrain Scan Range 16 Terrain Scan Density 10 Evasion (%) 40 Recoil Reduction 2 Offensive Hacking 5 Defensive Hacking 5 Item Schematics ----------------- None Robot Schematics ------------------ None Fabricated ------------ Nothing Alien Tech Used ----------------- None Achievements -------------- None Challenges ------------ None RPGLIKE | -11 -10 --------- Run | Scr Mat Levels Raised . | . . XP Earned 3900 | 3000 900 XP Spent 2900 | 2900 . Upgrades 10 | 10 . Propulsion Slot 1 | 1 . Utility Slot 1 | 1 . Weapon Slot 1 | 1 . Heat Dissipation 1 | 1 . Mass Support 1 | 1 . Inventory Capacity 2 | 2 . Sight Range 1 | 1 . Hack Attack % 1 | 1 . Hack Defense % 1 | 1 . Protomatter Created 77 | . 77 Protomatter Decayed 77 | . 77 Game ------ Seed NuclearAntimissilePurifier Manual? 0 Play Time 00:08:40 Cumulative 270.6 hours Start 2020.09.25 @ 18:56:53 End 2020.09.25 @ 19:15:29 Sessions 1 Manual Loads 0 Difficulty Rogue Special Mode Winter2019/RPGLIKE Game No. 112 Rogue 112 Adventurer 0 Explorer 0 Win Type - Total 4 Types 3/0/0/1/0/0/0/0/0 Lore% 83 Gallery% 86 Achievement% 70 Wizard Run 0 Options --------- ASCII 0 Keyboard 0 Movement Numpad Keybinds 0 Fullscreen 1 Font 18/SmallcapsGlow Map View 76x50 Tactical HUD 1 Map Filters NONE Filters NONE Steam 1 RUN: 5fcd1311-3eb9-4675-acff-dea8103a3d66